[Event "Early-Titled-Tuesday-Blitz-May-14-2024"]
[Site "Chess.com"]
[Date "2024.05.14"]
[Round "8"]
[White "mostafa_sakha"]
[Black "laysa_latifah"]
[Result "1-0"]
[WhiteElo "2346"]
[BlackElo "2516"]
[TimeControl "180+1"]
[EndTime "9:28:50 PDT"]
[Termination "mostafa_sakha won by resignation"]

1. d4 {[%clk 0:02:59]} 1... d5 {[%clk 0:02:29.3]} 2. c4 {[%clk 0:02:58.5]} 2...
Nf6 {[%clk 0:02:30.2]} 3. cxd5 {[%clk 0:02:57.9]} 3... Nxd5 {[%clk 0:02:27.3]}
4. Nf3 {[%clk 0:02:57.3]} 4... g6 {[%clk 0:02:26]} 5. e4 {[%clk 0:02:56]} 5...
Nb6 {[%clk 0:02:26.1]} 6. Nc3 {[%clk 0:02:54.5]} 6... Bg7 {[%clk 0:02:26.2]} 7.
h3 {[%clk 0:02:52.7]} 7... O-O {[%clk 0:02:25.8]} 8. Be2 {[%clk 0:02:52.3]} 8...
N8d7 {[%clk 0:02:25.2]} 9. O-O {[%clk 0:02:51.9]} 9... c6 {[%clk 0:02:25.5]} 10.
Bf4 {[%clk 0:02:50.8]} 10... Re8 {[%clk 0:02:24.8]} 11. Qc1 {[%clk 0:02:43.6]}
11... e5 {[%clk 0:02:24.6]} 12. Bh6 {[%clk 0:02:40.2]} 12... exd4 {[%clk
0:02:20.5]} 13. Bxg7 {[%clk 0:02:39.4]} 13... Kxg7 {[%clk 0:02:21.4]} 14. Nxd4
{[%clk 0:02:39.2]} 14... Nf6 {[%clk 0:02:21.7]} 15. Qe3 {[%clk 0:02:28.8]} 15...
Nbd5 {[%clk 0:02:14.3]} 16. Nxd5 {[%clk 0:02:27.9]} 16... Rxe4 {[%clk
0:02:09.4]} 17. Nxf6 {[%clk 0:02:22.1]} 17... Rxe3 {[%clk 0:02:08.6]} 18. fxe3
{[%clk 0:02:21.6]} 18... Qe7 {[%clk 0:02:08.6]} 19. Rf3 {[%clk 0:02:17.3]} 19...
Qe5 {[%clk 0:01:57]} 20. Raf1 {[%clk 0:02:14.6]} 20... c5 {[%clk 0:01:46.3]} 21.
Nb5 {[%clk 0:01:54.9]} 21... Be6 {[%clk 0:01:35.5]} 22. Nc3 {[%clk 0:01:44.6]}
22... Rd8 {[%clk 0:01:34.2]} 23. Nce4 {[%clk 0:01:12.2]} 23... Bf5 {[%clk
0:01:25.5]} 24. Ng3 {[%clk 0:01:10.3]} 24... Qxf6 {[%clk 0:01:17.4]} 25. Rxf5
{[%clk 0:01:03.6]} 25... gxf5 {[%clk 0:01:18.3]} 26. Nh5+ {[%clk 0:01:03.1]}
26... Kg6 {[%clk 0:01:17.6]} 27. Nxf6 {[%clk 0:01:02.2]} 27... Kxf6 {[%clk
0:01:18.5]} 28. e4 {[%clk 0:00:56.9]} 28... Rd2 {[%clk 0:01:17.7]} 29. Rxf5+
{[%clk 0:00:56.2]} 29... Kg7 {[%clk 0:01:17.3]} 30. Bc4 {[%clk 0:00:55.4]} 30...
f6 {[%clk 0:01:15.7]} 31. Rxc5 {[%clk 0:00:52.5]} 31... Rxb2 {[%clk 0:01:15.1]}
32. Rc7+ {[%clk 0:00:51.6]} 32... Kg6 {[%clk 0:01:15.4]} 33. Bd5 {[%clk
0:00:43.1]} 1-0

[Event "Early-Titled-Tuesday-Blitz-May-14-2024"]
[Site "Chess.com"]
[Date "2024.05.14"]
[Round "8"]
[White "maciek_92"]
[Black "DominguezOnYoutube"]
[Result "0-1"]
[WhiteElo "2833"]
[BlackElo "3020"]
[TimeControl "180+1"]
[EndTime "9:28:53 PDT"]
[Termination "DominguezOnYoutube won by resignation"]

1. c4 {[%clk 0:03:00.9]} 1... e6 {[%clk 0:02:55.9]} 2. Nf3 {[%clk 0:03:00.5]}
2... d5 {[%clk 0:02:55.4]} 3. e3 {[%clk 0:03:00.3]} 3... Nf6 {[%clk 0:02:55.3]}
4. b3 {[%clk 0:02:58]} 4... Bd6 {[%clk 0:02:54.3]} 5. Bb2 {[%clk 0:02:58.3]}
5... O-O {[%clk 0:02:53.8]} 6. Nc3 {[%clk 0:02:58.9]} 6... c5 {[%clk 0:02:52.8]}
7. cxd5 {[%clk 0:02:57]} 7... exd5 {[%clk 0:02:52.6]} 8. d4 {[%clk 0:02:57.1]}
8... cxd4 {[%clk 0:02:50]} 9. Nxd4 {[%clk 0:02:56.9]} 9... Nc6 {[%clk
0:02:50.1]} 10. Be2 {[%clk 0:02:54.3]} 10... Re8 {[%clk 0:02:49.5]} 11. O-O
{[%clk 0:02:53.7]} 11... Nxd4 {[%clk 0:02:48]} 12. Qxd4 {[%clk 0:02:53.4]} 12...
Be5 {[%clk 0:02:48.2]} 13. Qd2 {[%clk 0:02:46.7]} 13... Bf5 {[%clk 0:01:44.2]}
14. Rfd1 {[%clk 0:01:35.7]} 14... Rc8 {[%clk 0:01:42.5]} 15. Rac1 {[%clk
0:01:36]} 15... Qa5 {[%clk 0:01:31.4]} 16. a3 {[%clk 0:00:31.1]} 16... Ne4
{[%clk 0:01:21.6]} 17. Nxe4 {[%clk 0:00:30.3]} 17... Qxd2 {[%clk 0:01:21.2]} 18.
Rxd2 {[%clk 0:00:23.4]} 18... Rxc1+ {[%clk 0:01:20.6]} 19. Bxc1 {[%clk
0:00:22.9]} 19... dxe4 {[%clk 0:01:11]} 20. Bb2 {[%clk 0:00:22.5]} 20... Bxb2
{[%clk 0:01:08.9]} 21. Rxb2 {[%clk 0:00:23.4]} 21... Rc8 {[%clk 0:01:08.6]} 22.
Kf1 {[%clk 0:00:22.7]} 22... Rc1+ {[%clk 0:01:06.5]} 0-1

[Event "Early-Titled-Tuesday-Blitz-May-14-2024"]
[Site "Chess.com"]
[Date "2024.05.14"]
[Round "8"]
[White "Azalea95"]
[Black "Shushik"]
[Result "1-0"]
[WhiteElo "2418"]
[BlackElo "2535"]
[TimeControl "180+1"]
[EndTime "9:28:56 PDT"]
[Termination "Azalea95 won by resignation"]

1. e4 {[%clk 0:02:59.7]} 1... c5 {[%clk 0:03:00.4]} 2. Nc3 {[%clk 0:02:58.8]}
2... Nc6 {[%clk 0:02:59.8]} 3. g3 {[%clk 0:02:59.6]} 3... g6 {[%clk 0:02:59.9]}
4. Bg2 {[%clk 0:03:00.3]} 4... Bg7 {[%clk 0:03:00.6]} 5. d3 {[%clk 0:03:01]}
5... d6 {[%clk 0:03:00.6]} 6. f4 {[%clk 0:03:01]} 6... e6 {[%clk 0:02:58.1]} 7.
Nf3 {[%clk 0:03:01.3]} 7... Nge7 {[%clk 0:02:58.5]} 8. O-O {[%clk 0:03:02]} 8...
O-O {[%clk 0:02:59.2]} 9. h3 {[%clk 0:02:53.6]} 9... b6 {[%clk 0:02:58.1]} 10.
g4 {[%clk 0:02:50.5]} 10... f5 {[%clk 0:02:57.9]} 11. Be3 {[%clk 0:02:47.5]}
11... Bd7 {[%clk 0:02:51.6]} 12. Qd2 {[%clk 0:02:45.2]} 12... Nd4 {[%clk
0:02:41.2]} 13. Rae1 {[%clk 0:02:40.5]} 13... b5 {[%clk 0:02:36.3]} 14. Bf2
{[%clk 0:02:29.9]} 14... b4 {[%clk 0:02:32.9]} 15. Nd1 {[%clk 0:02:29.9]} 15...
Rb8 {[%clk 0:02:20.5]} 16. g5 {[%clk 0:02:06.4]} 16... fxe4 {[%clk 0:01:58.9]}
17. dxe4 {[%clk 0:02:07.3]} 17... e5 {[%clk 0:01:58.9]} 18. Bg3 {[%clk
0:01:53.7]} 18... Nxf3+ {[%clk 0:01:51.3]} 19. Rxf3 {[%clk 0:01:52.4]} 19... Be6
{[%clk 0:01:45.5]} 20. Ne3 {[%clk 0:01:35]} 20... Nc6 {[%clk 0:01:38.2]} 21. f5
{[%clk 0:01:01.4]} 21... Nd4 {[%clk 0:01:38]} 22. f6 {[%clk 0:01:01.9]} 22...
Nxf3+ {[%clk 0:01:35.6]} 23. Bxf3 {[%clk 0:01:02.8]} 23... Bxf6 {[%clk
0:01:14.9]} 24. gxf6 {[%clk 0:01:01.9]} 24... Qxf6 {[%clk 0:01:15.8]} 25. Bg4
{[%clk 0:00:45.8]} 25... Bxg4 {[%clk 0:01:10.3]} 26. Nxg4 {[%clk 0:00:46.7]}
26... Qf3 {[%clk 0:01:05.9]} 27. Qg2 {[%clk 0:00:41.8]} 27... Qf7 {[%clk
0:01:02.9]} 28. Nh6+ {[%clk 0:00:40.9]} 1-0

[Event "Early-Titled-Tuesday-Blitz-May-14-2024"]
[Site "Chess.com"]
[Date "2024.05.14"]
[Round "8"]
[White "artin10862"]
[Black "NovoselovRoman"]
[Result "1-0"]
[WhiteElo "2858"]
[BlackElo "2653"]
[TimeControl "180+1"]
[EndTime "9:28:59 PDT"]
[Termination "artin10862 won by resignation"]

1. e4 {[%clk 0:02:54.2]} 1... e6 {[%clk 0:02:51.5]} 2. d4 {[%clk 0:02:49.6]}
2... d5 {[%clk 0:02:51.7]} 3. Nd2 {[%clk 0:02:49.3]} 3... c5 {[%clk 0:02:49.9]}
4. Ngf3 {[%clk 0:02:46.9]} 4... Nc6 {[%clk 0:02:48.8]} 5. Bb5 {[%clk 0:02:28.3]}
5... Qb6 {[%clk 0:02:31.9]} 6. Qe2 {[%clk 0:02:07.5]} 6... dxe4 {[%clk
0:02:23.7]} 7. Nxe4 {[%clk 0:01:58.3]} 7... cxd4 {[%clk 0:02:18]} 8. O-O {[%clk
0:01:58.1]} 8... Nf6 {[%clk 0:02:07]} 9. Nxf6+ {[%clk 0:01:53.8]} 9... gxf6
{[%clk 0:02:07.9]} 10. Rd1 {[%clk 0:01:54.4]} 10... Bc5 {[%clk 0:01:59.5]} 11.
a3 {[%clk 0:01:36.4]} 11... e5 {[%clk 0:01:51.6]} 12. Nxe5 {[%clk 0:01:28.7]}
12... Be6 {[%clk 0:01:49.5]} 13. Nc4 {[%clk 0:01:12.3]} 13... Qc7 {[%clk
0:01:39.2]} 14. b4 {[%clk 0:01:10.5]} 14... Be7 {[%clk 0:01:28.5]} 15. Qf3
{[%clk 0:01:09.4]} 15... a6 {[%clk 0:01:24.4]} 16. Bf4 {[%clk 0:01:09]} 16...
axb5 {[%clk 0:00:41.2]} 17. Bxc7 {[%clk 0:01:06.1]} 17... bxc4 {[%clk
0:00:41.9]} 18. b5 {[%clk 0:01:05.5]} 18... Ne5 {[%clk 0:00:31.2]} 19. Qxb7
{[%clk 0:00:48.8]} 19... O-O {[%clk 0:00:30.9]} 20. Bxe5 {[%clk 0:00:47.6]} 1-0

[Event "Early-Titled-Tuesday-Blitz-May-14-2024"]
[Site "Chess.com"]
[Date "2024.05.14"]
[Round "8"]
[White "AlexandraSamaganova"]
[Black "TomLiu777"]
[Result "1-0"]
[WhiteElo "2398"]
[BlackElo "2274"]
[TimeControl "180+1"]
[EndTime "9:29:02 PDT"]
[Termination "AlexandraSamaganova won by checkmate"]

1. c4 {[%clk 0:03:00.9]} 1... g6 {[%clk 0:02:55.2]} 2. Nc3 {[%clk 0:02:59.8]}
2... Bg7 {[%clk 0:02:47.8]} 3. g3 {[%clk 0:02:59.4]} 3... a6 {[%clk 0:02:46.2]}
4. Bg2 {[%clk 0:02:59.3]} 4... Ra7 {[%clk 0:02:47.1]} 5. d4 {[%clk 0:02:56.3]}
5... Nf6 {[%clk 0:02:47.3]} 6. e4 {[%clk 0:02:56.1]} 6... O-O {[%clk 0:02:45.1]}
7. Nge2 {[%clk 0:02:56.1]} 7... Ne8 {[%clk 0:02:43.5]} 8. O-O {[%clk 0:02:53.9]}
8... d6 {[%clk 0:02:43.5]} 9. Be3 {[%clk 0:02:51.2]} 9... b6 {[%clk 0:02:44]}
10. h4 {[%clk 0:02:46.2]} 10... c5 {[%clk 0:02:43.7]} 11. Qd2 {[%clk 0:02:42]}
11... Nc6 {[%clk 0:02:42.2]} 12. Rad1 {[%clk 0:02:22.7]} 12... cxd4 {[%clk
0:02:38.5]} 13. Nxd4 {[%clk 0:02:21.9]} 13... Nxd4 {[%clk 0:02:39.2]} 14. Bxd4
{[%clk 0:02:22.4]} 14... Nf6 {[%clk 0:02:39.6]} 15. Nd5 {[%clk 0:02:17.4]} 15...
Nxd5 {[%clk 0:02:36.2]} 16. exd5 {[%clk 0:02:17.7]} 16... Bg4 {[%clk 0:02:34.6]}
17. Bxg7 {[%clk 0:02:10]} 17... Re8 {[%clk 0:02:21.9]} 18. Bc3 {[%clk
0:02:05.2]} 18... Bxd1 {[%clk 0:02:19.9]} 19. Rxd1 {[%clk 0:02:05.1]} 19... Rc7
{[%clk 0:02:16.3]} 20. h5 {[%clk 0:02:04.9]} 20... Rxc4 {[%clk 0:02:12.8]} 21.
Qh6 {[%clk 0:02:04.3]} 21... Rxc3 {[%clk 0:02:09]} 22. bxc3 {[%clk 0:02:03.6]}
22... Qc8 {[%clk 0:02:09.7]} 23. hxg6 {[%clk 0:02:00.1]} 23... hxg6 {[%clk
0:02:07.2]} 24. Rd4 {[%clk 0:01:59.7]} 24... Qxc3 {[%clk 0:02:05.1]} 25. Rh4
{[%clk 0:01:59.6]} 25... Qg7 {[%clk 0:02:05.7]} 26. Qe3 {[%clk 0:01:54.6]} 26...
b5 {[%clk 0:01:58.9]} 27. Qa3 {[%clk 0:01:51.7]} 27... g5 {[%clk 0:01:49.9]} 28.
Re4 {[%clk 0:01:50.1]} 28... Qa1+ {[%clk 0:01:48]} 29. Bf1 {[%clk 0:01:46.5]}
29... Rc8 {[%clk 0:01:46.5]} 30. Rxe7 {[%clk 0:01:09.5]} 30... Qf6 {[%clk
0:01:36.4]} 31. Qe3 {[%clk 0:01:03.8]} 31... Kg7 {[%clk 0:01:33.8]} 32. Re4
{[%clk 0:00:52.7]} 32... Rh8 {[%clk 0:01:29.9]} 33. Rg4 {[%clk 0:00:45]} 33...
Qa1 {[%clk 0:01:14]} 34. Qxg5+ {[%clk 0:00:38]} 34... Kf8 {[%clk 0:01:14.4]} 35.
Qd8# {[%clk 0:00:38.1]} 1-0

[Event "Early-Titled-Tuesday-Blitz-May-14-2024"]
[Site "Chess.com"]
[Date "2024.05.14"]
[Round "8"]
[White "slorovel"]
[Black "ploxoi"]
[Result "1-0"]
[WhiteElo "2559"]
[BlackElo "2349"]
[TimeControl "180+1"]
[EndTime "9:29:03 PDT"]
[Termination "slorovel won by resignation"]

1. e4 {[%clk 0:02:53.6]} 1... c5 {[%clk 0:02:58.7]} 2. Nf3 {[%clk 0:02:53.7]}
2... e6 {[%clk 0:02:59.1]} 3. g3 {[%clk 0:02:53.3]} 3... d5 {[%clk 0:02:58.7]}
4. exd5 {[%clk 0:02:51.9]} 4... Qxd5 {[%clk 0:02:58.6]} 5. Bg2 {[%clk
0:02:52.6]} 5... Nc6 {[%clk 0:02:59.1]} 6. O-O {[%clk 0:02:52.9]} 6... Nge7
{[%clk 0:02:58.4]} 7. Nc3 {[%clk 0:02:53.2]} 7... Qd8 {[%clk 0:02:58.6]} 8. Qe2
{[%clk 0:02:52.5]} 8... Nf5 {[%clk 0:02:58.7]} 9. b3 {[%clk 0:02:43.2]} 9... Be7
{[%clk 0:02:58.3]} 10. Bb2 {[%clk 0:02:41.8]} 10... Bf6 {[%clk 0:02:50.1]} 11.
Na4 {[%clk 0:02:41.1]} 11... Bxb2 {[%clk 0:02:49.7]} 12. Nxb2 {[%clk 0:02:42]}
12... O-O {[%clk 0:02:49.5]} 13. c3 {[%clk 0:02:39.8]} 13... Rb8 {[%clk
0:02:45.6]} 14. Nd3 {[%clk 0:02:37.5]} 14... Qd6 {[%clk 0:02:41.1]} 15. Nde5
{[%clk 0:02:32.3]} 15... Nxe5 {[%clk 0:02:38.8]} 16. Nxe5 {[%clk 0:02:33.2]}
16... f6 {[%clk 0:02:31.4]} 17. Nc4 {[%clk 0:02:32.9]} 17... Qc7 {[%clk
0:02:32]} 18. Ne3 {[%clk 0:02:30.9]} 18... Ne7 {[%clk 0:02:26.9]} 19. Rac1
{[%clk 0:02:28.6]} 19... Qd8 {[%clk 0:02:19.9]} 20. Rfd1 {[%clk 0:02:27.8]}
20... e5 {[%clk 0:02:16.4]} 21. Nc2 {[%clk 0:02:15.8]} 21... Re8 {[%clk
0:01:20.8]} 22. d4 {[%clk 0:02:11.6]} 22... exd4 {[%clk 0:00:59.4]} 23. cxd4
{[%clk 0:02:12.5]} 23... cxd4 {[%clk 0:00:47.1]} 24. Nxd4 {[%clk 0:02:06.9]}
24... Qb6 {[%clk 0:00:46.2]} 25. Qc4+ {[%clk 0:02:04.3]} 25... Kh8 {[%clk
0:00:44.4]} 26. Re1 {[%clk 0:02:03.5]} 26... Bd7 {[%clk 0:00:41.7]} 27. Rcd1
{[%clk 0:01:57]} 27... Rbc8 {[%clk 0:00:38.4]} 28. Qf7 {[%clk 0:01:56.4]} 28...
Qc5 {[%clk 0:00:10.6]} 29. Bxb7 {[%clk 0:01:46.5]} 29... Rcd8 {[%clk 0:00:10.7]}
30. Bg2 {[%clk 0:01:43.5]} 30... Bg4 {[%clk 0:00:08.1]} 31. Ne6 {[%clk
0:01:34.5]} 31... Bxe6 {[%clk 0:00:04.8]} 32. Qxe6 {[%clk 0:01:35.3]} 32... Qb6
{[%clk 0:00:02.1]} 33. Qxb6 {[%clk 0:01:34.2]} 33... axb6 {[%clk 0:00:02.7]} 1-0

[Event "Early-Titled-Tuesday-Blitz-May-14-2024"]
[Site "Chess.com"]
[Date "2024.05.14"]
[Round "8"]
[White "SuperJesus88"]
[Black "Mops_2004"]
[Result "0-1"]
[WhiteElo "2548"]
[BlackElo "2821"]
[TimeControl "180+1"]
[EndTime "9:29:05 PDT"]
[Termination "Mops_2004 won by resignation"]

1. e4 {[%clk 0:03:00.9]} 1... c5 {[%clk 0:02:59.3]} 2. Nf3 {[%clk 0:03:01]} 2...
Nc6 {[%clk 0:02:59.4]} 3. d4 {[%clk 0:03:01.1]} 3... cxd4 {[%clk 0:03:00.3]} 4.
Nxd4 {[%clk 0:03:01.5]} 4... Nf6 {[%clk 0:03:00.9]} 5. Nxc6 {[%clk 0:02:57.8]}
5... bxc6 {[%clk 0:03:01.8]} 6. Bd3 {[%clk 0:02:57.9]} 6... g6 {[%clk
0:02:45.6]} 7. O-O {[%clk 0:02:55]} 7... Bg7 {[%clk 0:02:45.6]} 8. c4 {[%clk
0:02:31.1]} 8... O-O {[%clk 0:02:41.7]} 9. Nc3 {[%clk 0:02:31.5]} 9... d6 {[%clk
0:02:39.6]} 10. Qc2 {[%clk 0:02:27.3]} 10... Nd7 {[%clk 0:02:38.6]} 11. b3
{[%clk 0:02:26.8]} 11... a5 {[%clk 0:02:35.1]} 12. Bb2 {[%clk 0:02:25.2]} 12...
Nc5 {[%clk 0:02:34.1]} 13. Rad1 {[%clk 0:02:23]} 13... Qb6 {[%clk 0:02:30.1]}
14. Ba1 {[%clk 0:02:13.2]} 14... a4 {[%clk 0:02:05.5]} 15. Rb1 {[%clk
0:01:50.9]} 15... axb3 {[%clk 0:02:05.2]} 16. axb3 {[%clk 0:01:51.4]} 16... Qb4
{[%clk 0:01:54.4]} 17. Be2 {[%clk 0:01:35.5]} 17... Rxa1 {[%clk 0:01:52.6]} 18.
Rxa1 {[%clk 0:01:34.1]} 18... Bxc3 {[%clk 0:01:50.4]} 19. Ra8 {[%clk 0:01:22.2]}
19... Qxb3 {[%clk 0:01:35.4]} 20. Qc1 {[%clk 0:01:12]} 20... Qb2 {[%clk
0:01:20.9]} 21. Qd1 {[%clk 0:01:06.1]} 21... Nxe4 {[%clk 0:01:02.3]} 22. Bg4
{[%clk 0:00:57.9]} 22... Bxg4 {[%clk 0:00:56.2]} 23. Rxf8+ {[%clk 0:00:58.5]}
23... Kxf8 {[%clk 0:00:56.9]} 24. Qxg4 {[%clk 0:00:58.9]} 24... Nf6 {[%clk
0:00:52.2]} 25. Qc8+ {[%clk 0:00:59]} 25... Kg7 {[%clk 0:00:52.3]} 26. Qxc6
{[%clk 0:00:59.9]} 26... Bd4 {[%clk 0:00:51.5]} 27. g3 {[%clk 0:00:58.7]} 27...
Qe2 {[%clk 0:00:48.9]} 28. h3 {[%clk 0:00:56.8]} 28... Ne4 {[%clk 0:00:47.2]}
29. Kg2 {[%clk 0:00:47.1]} 29... Bxf2 {[%clk 0:00:43.3]} 30. Qxe4 {[%clk
0:00:43.4]} 30... Qxe4+ {[%clk 0:00:41.9]} 0-1

[Event "Early-Titled-Tuesday-Blitz-May-14-2024"]
[Site "Chess.com"]
[Date "2024.05.14"]
[Round "8"]
[White "kuchma777"]
[Black "lamomiajunior"]
[Result "0-1"]
[WhiteElo "2542"]
[BlackElo "2777"]
[TimeControl "180+1"]
[EndTime "9:29:06 PDT"]
[Termination "lamomiajunior won by resignation"]

1. e4 {[%clk 0:02:55.7]} 1... c5 {[%clk 0:02:58.4]} 2. Nf3 {[%clk 0:02:55]} 2...
d6 {[%clk 0:02:58.8]} 3. d4 {[%clk 0:02:53.3]} 3... cxd4 {[%clk 0:02:59.7]} 4.
Nxd4 {[%clk 0:02:54.2]} 4... Nf6 {[%clk 0:03:00.1]} 5. Nc3 {[%clk 0:02:54.5]}
5... a6 {[%clk 0:03:00.7]} 6. Rg1 {[%clk 0:02:54.7]} 6... h5 {[%clk 0:02:59.1]}
7. Bg5 {[%clk 0:02:52.4]} 7... Nc6 {[%clk 0:02:58.3]} 8. Qd2 {[%clk 0:02:36.9]}
8... e6 {[%clk 0:02:52.3]} 9. O-O-O {[%clk 0:02:30.6]} 9... Be7 {[%clk
0:02:51.8]} 10. h4 {[%clk 0:02:30.9]} 10... Bd7 {[%clk 0:02:51.4]} 11. f3 {[%clk
0:02:29.5]} 11... Rc8 {[%clk 0:02:48.3]} 12. Nb3 {[%clk 0:02:20.7]} 12... Qc7
{[%clk 0:02:40.5]} 13. Be2 {[%clk 0:02:15]} 13... b5 {[%clk 0:02:22.1]} 14. Kb1
{[%clk 0:02:08.3]} 14... Ne5 {[%clk 0:02:14.7]} 15. g4 {[%clk 0:01:26.2]} 15...
b4 {[%clk 0:02:14.6]} 16. Bxf6 {[%clk 0:00:56.8]} 16... bxc3 {[%clk 0:02:10]}
17. bxc3 {[%clk 0:00:41.3]} 17... gxf6 {[%clk 0:02:08.6]} 18. gxh5 {[%clk
0:00:41]} 18... Qxc3 {[%clk 0:02:04.6]} 19. Bxa6 {[%clk 0:00:37.3]} 19... Qxd2
{[%clk 0:02:04]} 20. Rxd2 {[%clk 0:00:37.6]} 20... Nxf3 {[%clk 0:02:02.6]} 21.
Bxc8 {[%clk 0:00:31.6]} 21... Nxd2+ {[%clk 0:02:02]} 22. Nxd2 {[%clk 0:00:32.5]}
22... Bxc8 {[%clk 0:02:02.7]} 23. Nc4 {[%clk 0:00:33]} 23... Ba6 {[%clk
0:01:58.9]} 24. Na5 {[%clk 0:00:29.6]} 24... Rxh5 {[%clk 0:01:57.9]} 25. Nc6
{[%clk 0:00:28.4]} 25... Bb7 {[%clk 0:01:50.5]} 26. Rg8+ {[%clk 0:00:27.5]}
26... Bf8 {[%clk 0:01:50.1]} 27. Nd4 {[%clk 0:00:26.5]} 27... Rxh4 {[%clk
0:01:48.9]} 28. Nb5 {[%clk 0:00:26.3]} 28... Ke7 {[%clk 0:01:40.7]} 29. Nxd6
{[%clk 0:00:13.2]} 29... Kxd6 {[%clk 0:01:40.4]} 30. Rxf8 {[%clk 0:00:13.4]}
30... Ke7 {[%clk 0:01:40]} 31. Rb8 {[%clk 0:00:13.4]} 31... Bxe4 {[%clk
0:01:40.4]} 32. Kb2 {[%clk 0:00:13.7]} 32... f5 {[%clk 0:01:40.4]} 33. a4 {[%clk
0:00:13]} 33... f4 {[%clk 0:01:40.7]} 34. a5 {[%clk 0:00:12.7]} 34... Rh2 {[%clk
0:01:40.4]} 35. Rc8 {[%clk 0:00:12]} 35... f3 {[%clk 0:01:40.1]} 36. a6 {[%clk
0:00:11.4]} 36... f2 {[%clk 0:01:40.4]} 37. Rc7+ {[%clk 0:00:10.4]} 37... Kf6
{[%clk 0:01:40.2]} 38. a7 {[%clk 0:00:09.5]} 38... f1=Q {[%clk 0:01:39.8]} 39.
Rc4 {[%clk 0:00:07.9]} 39... Qxc4 {[%clk 0:01:39.5]} 0-1

[Event "Early-Titled-Tuesday-Blitz-May-14-2024"]
[Site "Chess.com"]
[Date "2024.05.14"]
[Round "8"]
[White "Casper"]
[Black "SharapovEvgeny"]
[Result "1/2-1/2"]
[WhiteElo "2519"]
[BlackElo "2636"]
[TimeControl "180+1"]
[EndTime "9:29:06 PDT"]
[Termination "Game drawn - insufficient material"]

1. e4 {[%clk 0:03:00.9]} 1... c5 {[%clk 0:02:59.5]} 2. Ne2 {[%clk 0:02:59.8]}
2... Nc6 {[%clk 0:02:58.9]} 3. g3 {[%clk 0:02:58.5]} 3... e5 {[%clk 0:02:58]} 4.
Bg2 {[%clk 0:02:58.8]} 4... g6 {[%clk 0:02:58.2]} 5. O-O {[%clk 0:02:57.9]} 5...
Bg7 {[%clk 0:02:58.4]} 6. d3 {[%clk 0:02:58.8]} 6... d6 {[%clk 0:02:58.4]} 7. f4
{[%clk 0:02:58.7]} 7... Nge7 {[%clk 0:02:57.4]} 8. c3 {[%clk 0:02:58.2]} 8...
O-O {[%clk 0:02:56.9]} 9. Nd2 {[%clk 0:02:58]} 9... Rb8 {[%clk 0:02:56.9]} 10.
a4 {[%clk 0:02:57.4]} 10... a6 {[%clk 0:02:56.9]} 11. Nc4 {[%clk 0:02:57.2]}
11... b5 {[%clk 0:02:55.4]} 12. axb5 {[%clk 0:02:58.1]} 12... axb5 {[%clk
0:02:55.6]} 13. Ne3 {[%clk 0:02:59]} 13... b4 {[%clk 0:02:44.7]} 14. f5 {[%clk
0:02:54.5]} 14... gxf5 {[%clk 0:02:44.7]} 15. exf5 {[%clk 0:02:55.4]} 15... f6
{[%clk 0:02:43.6]} 16. c4 {[%clk 0:02:55.6]} 16... Nd4 {[%clk 0:02:40.8]} 17. g4
{[%clk 0:02:56.2]} 17... Bb7 {[%clk 0:02:38.5]} 18. Ng3 {[%clk 0:02:53.8]} 18...
Bxg2 {[%clk 0:02:36.7]} 19. Kxg2 {[%clk 0:02:54.7]} 19... Qd7 {[%clk 0:02:28.9]}
20. Ne4 {[%clk 0:02:51.7]} 20... Ra8 {[%clk 0:02:22.8]} 21. Bd2 {[%clk
0:02:49.8]} 21... Rxa1 {[%clk 0:02:20.2]} 22. Qxa1 {[%clk 0:02:50.7]} 22... Nb3
{[%clk 0:02:19.1]} 23. Qe1 {[%clk 0:02:49]} 23... Nxd2 {[%clk 0:02:19]} 24. Nxd2
{[%clk 0:02:49.9]} 24... d5 {[%clk 0:02:18.9]} 25. Qd1 {[%clk 0:02:38.2]} 25...
Bh6 {[%clk 0:02:15]} 26. Nxd5 {[%clk 0:02:20.1]} 26... Nxd5 {[%clk 0:02:13.2]}
27. cxd5 {[%clk 0:02:21]} 27... Bxd2 {[%clk 0:02:10.5]} 28. Qxd2 {[%clk
0:02:21.9]} 28... Qxd5+ {[%clk 0:02:10.5]} 29. Rf3 {[%clk 0:02:04.9]} 29... e4
{[%clk 0:02:08.9]} 30. Re3 {[%clk 0:02:04.4]} 30... exd3+ {[%clk 0:02:07.2]} 31.
Kf2 {[%clk 0:02:05.1]} 31... Qd4 {[%clk 0:02:05.9]} 32. Qxd3 {[%clk 0:02:04]}
32... Qxd3 {[%clk 0:02:03]} 33. Rxd3 {[%clk 0:02:04.3]} 33... c4 {[%clk
0:02:02]} 34. Rd7 {[%clk 0:01:35]} 34... Rc8 {[%clk 0:02:00.6]} 35. Ke2 {[%clk
0:01:29.8]} 35... c3 {[%clk 0:02:00.5]} 36. bxc3 {[%clk 0:01:29.3]} 36... bxc3
{[%clk 0:02:00.9]} 37. Kd1 {[%clk 0:01:24.6]} 37... Rc4 {[%clk 0:01:59.5]} 38.
h3 {[%clk 0:01:22.8]} 38... h5 {[%clk 0:01:52.2]} 39. gxh5 {[%clk 0:01:02.7]}
39... Rc5 {[%clk 0:01:48.6]} 40. h6 {[%clk 0:00:56.2]} 40... Rxf5 {[%clk
0:01:46.4]} 41. Rd3 {[%clk 0:00:48.3]} 41... Rc5 {[%clk 0:01:43.7]} 42. Kc2
{[%clk 0:00:34.5]} 42... Kh7 {[%clk 0:01:40.5]} 43. Rxc3 {[%clk 0:00:34]} 43...
Rxc3+ {[%clk 0:01:38.8]} 44. Kxc3 {[%clk 0:00:34.3]} 44... Kxh6 {[%clk
0:01:39.5]} 45. Kd4 {[%clk 0:00:34]} 45... Kg5 {[%clk 0:01:39.5]} 46. Ke4 {[%clk
0:00:34.2]} 46... Kh4 {[%clk 0:01:37.6]} 47. Kf5 {[%clk 0:00:30.7]} 47... Kxh3
{[%clk 0:01:38.1]} 48. Kg6 {[%clk 0:00:30.3]} 48... Kg4 {[%clk 0:01:37.8]} 49.
Kxf6 {[%clk 0:00:30.7]} 1/2-1/2